Cogmind - Beta 15 *** ADVENTURER MODE // 2025.06.20 @ 13:56:42 Player: Quasar Result: Destroyed by Triborg with Siege Cannon Performance ------------- Evolutions (0) 0 Regions Visited (3) 600 Robots Destroyed (14) 70 Value Destroyed (478) 478 Prototype IDs (7) 140 Alien Tech Used (0) 0 Bonus (133) 133 TOTAL SCORE: 1421 Bonus ------- Registered with UFD 300 Friendly Fire -167 Cogmind --------- Core Integrity 0/250 Matter 294/300 Energy 14/100 System Corruption 0% Temperature Cool (0) Movement Core (150) Ox2 Location -8/Scraptown Parts ------- > --- POWER (1) -------- (None) > --- PROPULSION (2) --- (None) > --- UTILITY (2) ------ Scrap Suit > --- WEAPON (2) ------- Heavy EM Pulse Gun > --- INVENTORY (5) ---- Light Nuclear Core Transport Network Coupler Drone Bay (0/2) Magnetic Acceleration Cannon Peak State ------------ > --- POWER ------------ Light Nuclear Core > --- PROPULSION ------- Hover Unit Hover Unit > --- UTILITY ---------- Medium Storage Unit A0-MCA's Component Scanner > --- WEAPON ----------- Magnetic Acceleration Cannon Rocket Launcher > --- INVENTORY -------- Light Nuclear Core Light Nuclear Core Scrap Suit Medium Matter Pod Transport Network Coupler Phase Shifter Drone Bay Heavy EM Pulse Gun Ion Cannon [Rating: 25] Favorites ----------- Power Ion Engine Engine Ion Engine Power Core Light Nuclear Core Propulsion Hover Unit Treads Light Treads Leg Improved Aluminum Leg Wheel Subdweller Monowheel Hover Unit Hover Unit Flight Unit VTOL Module Utility Medium Storage Unit Device Phase Shifter Storage Medium Storage Unit Processor Targeting Computer Protection Hardened Light Armor Plating Weapon Rocket Launcher Energy Gun Small Laser Energy Cannon Ion Cannon Ballistic Gun Light Assault Rifle Ballistic Cannon Magnetic Acceleration Cannon Launcher Rocket Launcher Build | -11 -10 -10 -8 ------- Run | Yrd Mat Sub Scr Slots Evolved . | . . . . Power . | . . . . Propulsion . | . . . . Utility . | . . . . Weapon . | . . . . Parts Attached 33 | 5 6 5 17 Power 5 | 1 . 1 3 Engine 3 | 1 . 1 1 Core 2 | . . . 2 Reactor . | . . . . Propulsion 10 | 2 2 2 4 Treads 2 | 2 . . . Leg 1 | . . . 1 Wheel 2 | . . 2 . Hover 3 | . 2 . 1 Flight 2 | . . . 2 Utility 11 | 1 2 1 7 Device 3 | . . . 3 Storage 4 | 1 1 . 2 Processor 2 | . 1 . 1 Hackware . | . . . . Protection 2 | . . 1 1 Artifact . | . . . . Weapon 7 | 1 2 1 3 Energy Gun 2 | . 1 . 1 Energy Cannon 1 | . . . 1 Ballistic Gun 1 | 1 . . . Ballistic Cannon 1 | . . . 1 Launcher 2 | . 1 1 . Special Weapon . | . . . . Impact Weapon . | . . . . Slashing Weapon . | . . . . Piercing Weapon . | . . . . Special Melee Weapon . | . . . . Unidentified Prototypes . | . . . . Parts Lost 8 | . . 3 5 Power 1 | . . . 1 Propulsion 4 | . . 2 2 Utility . | . . . . Weapon 3 | . . 1 2 Highest Loss Streak 5 | . . 1 5 To Critical Strikes . | . . . . Average Backups 7 | 2 6 7 8 Power 1 | . 1 1 1 Propulsion . | 1 1 . . Utility 4 | . 2 4 4 Weapon 1 | . 1 1 1 Tool/Special . | . . . . Unused Backups 14 | . 5 . 9 Power 3 | . . . 3 Propulsion 4 | . 4 . . Utility 4 | . 1 . 3 Weapon 2 | . . . 2 Tool/Special 1 | . . . 1 Average Slot Usage (%) 95 | . 95 89 96 Engine 10 | . 14 14 8 Core 3 | . . . 4 Treads 2 | . 18 . . Leg 4 | . . . 7 Wheel 1 | . . 8 . Hover 15 | . 9 9 18 Device 1 | . . . 2 Storage 13 | . 14 14 13 Processor 3 | . 10 2 1 Protection 8 | . . 11 9 Ballistic Gun 5 | . 14 14 1 Ballistic Cannon 7 | . . . 11 Launcher 13 | . 9 14 13 Peak Build Rating 25 | 5 9 11 25 Average Rating 14 | 3 7 8 17 On Entrance 5 | . 5 8 7 Naked Turns . | . . . . Heaviest Build 34 | 9 18 21 34 Greatest Support 40 | 40 40 40 13 Greatest Overweight (x) 6 | . 1 6 6 Average Overweight (x) 1 | . . 1 1 Largest Inventory Capacity 15 | 8 10 10 15 Average Capacity 9 | 7 8 10 9 Most Carried 10 | 5 10 10 10 Average Carried 8 | 2 6 8 8 Final Capacity 10 | 8 10 10 5 Final Carried 10 | 4 7 10 4 Class Distribution -------------------- 96% | Mutant 3% | Scrapper Dominant Class ---------------- Mutant | -10/Materials Mutant | -10/Subcaves Mutant | -8/Scraptown Resources | -11 -10 -10 -8 ----------- Run | Yrd Mat Sub Scr Matter Collected 916 | 216 261 230 209 Remotely . | . . . . Salvage Created 378 | . 59 203 116 Parts 23 | . 5 14 4 Haulers Intercepted . | . . . . Recyclers Shooed . | . . . . Parts Field Recycled . | . . . . Retrieved Matter . | . . . . Parts Self-Destructed 6 | . . 3 3 Prevented . | . . . . Kills | -11 -10 -10 -8 ------- Run | Yrd Mat Sub Scr Combat Hostiles Destroyed 12 | . 3 8 1 Guns 1 | . . 1 . AOE 11 | . 3 7 1 Classes Destroyed 4 | . 2 1 1 Tunneler 1 | . 1 . . Grunt 3 | . 3 . . Subdweller 8 | . . 8 . Scrapper 1 | . . . 1 Thug 1 | . . 1 . Best Kill Streak 6 | . 4 6 1 Combat Bots Only 6 | . 3 6 1 Max Kills in Single Turn 2 | . 2 2 1 Gunslinging . | . . . . Exploded 2 | . 1 2 1 Melee . | . . . . Uniques/NPCs Destroyed . | . . . . Combat | -11 -10 -10 -8 -------- Run | Yrd Mat Sub Scr Hostile Shots Fired 52 | . 4 16 32 Missed 20 | . 2 7 11 Hits 32 | . 2 9 21 Melee 1 | . . . 1 Projectile 31 | . 2 9 20 AOE 3 | . . 3 . Damage Taken 895 | . 41 298 556 Core 267 | . . 87 180 Absorbed by Shields . | . . . . Redirected to Shielding 20 | . . 20 . Ignored by Resistances 239 | . 12 81 146 Regen/Repaired (Parts) 304 | . . . 304 Core Remaining (%) 100 | 100 . . . Volleys Fired 42 | . 7 22 13 Largest 2 | . 2 1 1 Hottest 60 | . 60 33 60 Shots Fired 43 | . 8 22 13 Gun 13 | . 3 3 7 Cannon 3 | . . . 3 Launcher 27 | . 5 19 3 Special . | . . . . Kinetic 5 | . 2 3 . Thermal 4 | . 1 . 3 Explosive 27 | . 5 19 3 Electromagnetic 7 | . . . 7 Robot Hit Streak 8 | . 4 8 4 Robot Miss Streak 1 | . 1 1 1 Penetration Max . | . . . . Secondary Targets . | . . . . Shots Hit Robots 30 | . 6 15 9 Core Hits 33 | . 9 19 5 Critical Kills . | . . . . Critical Parts Destroyed . | . . . . Critical Strikes . | . . . . Melee Attacks . | . . . . Impact . | . . . . Slashing . | . . . . Piercing . | . . . . Sneak Attacks . | . . . . Combat Hostiles . | . . . . Follow-up Attacks . | . . . . Damage Inflicted 2378 | . 257 1900 221 Guns 86 | . 17 16 53 Cannons 46 | . . . 46 Explosions 2246 | . 240 1884 122 Melee . | . . . . Ramming . | . . . . Kinetic 22 | . 6 16 . Thermal 57 | . 11 . 46 Explosive 2246 | . 240 1884 122 Electromagnetic 53 | . . . 53 Impact . | . . . . Slashing . | . . . . Piercing . | . . . . Highest Corruption . | . . . . Average Corruption . | . . . . Corruption Purged . | . . . . Corruption Blocked . | . . . . Overload Shots . | . . . . Overflow Damage 54 | . . 54 . Projectiles . | . . . . Explosions 54 | . . 54 . Melee . | . . . . Knockbacks . | . . . . Impact . | . . . . Kinetic . | . . . . Secondary . | . . . . Self-Inflicted Damage 45 | . 24 21 . Shots 2 | . 1 1 . Rammed . | . . . . Targets Rammed . | . . . . Kicked . | . . . . Crushed . | . . . . Highest Temperature 76 | . 20 . 76 Average Temperature 35 | . 8 . 41 Received Heat Transfer 126 | . 12 60 54 Siege Activations . | . . . . Martial Activations . | . . . . Shielding Activations . | . . . . Robots Disrupted . | . . . . Combat Hostiles . | . . . . Robots Corrupted . | . . . . Combat Hostiles . | . . . . Parts Fried . | . . . . Impact Corruptions . | . . . . Robots Melted . | . . . . Combat Hostiles . | . . . . Parts Melted 2 | . . 2 . Heat Transferred 87 | . 25 . 62 Parts Sabotaged . | . . . . Parts Stolen . | . . . . Parts Stripped . | . . . . Power Chain Reactions . | . . . . Alert | -11 -10 -10 -8 ------- Run | Yrd Mat Sub Scr Maximum Alert Level . | . . . . Low Security (%) 100 | 100 100 . . Level 1 . | . . . . Level 2 . | . . . . Level 3 . | . . . . Level 4 . | . . . . Level 5 . | . . . . High Security . | . . . . Max Security . | . . . . Peak Influence 93 | . 93 . . Initial . | . . . . Average 13 | . 15 . . Influence Increases 125 | . 120 . 5 Destroy 0b10 Robot/C 60 | . 60 . . Destroy 0b10 Robot/NC 10 | . 5 . 5 Destroy Leader 10 | . 10 . . Successful Hack 17 | . 17 . . Destroy Structure 28 | . 28 . . Influence Decreases 125 | . 120 . 5 Time Decay 125 | . 120 . 5 Squads Dispatched 3 | . 3 . . Investigation 3 | . 3 . . Extermination . | . . . . Reinforcement . | . . . . Assault . | . . . . Garrison . | . . . . Intercept . | . . . . Searches Triggered . | . . . . Construction Impeded . | . . . . Haulers Reinforced . | . . . . Active Scanning Responses . | . . . . Cargo Convoy Interrupts . | . . . . Stealth | -11 -10 -10 -8 --------- Run | Yrd Mat Sub Scr Distress Signals 2 | . 2 . . Communications Jammed . | . . . . Distress Signals . | . . . . Times Spotted 28 | . 4 17 7 Peak Tracking Total 9 | . 2 6 9 Tactical Retreats 1 | . . . 1 Traps | -11 -10 -10 -8 ------- Run | Yrd Mat Sub Scr Traps Triggered . | . . . . Indirectly . | . . . . Trap Hack Attempts . | . . . . Triggered . | . . . . Disarmed . | . . . . Reprogrammed . | . . . . Reused . | . . . . Traps Extracted . | . . . . Installed . | . . . . Triggered . | . . . . Machines | -11 -10 -10 -8 ---------- Run | Yrd Mat Sub Scr Machines Disabled 2 | . . . 2 Max in Single Turn 1 | . . . 1 Machines Repaired . | . . . . Machines Dismantled . | . . . . Machines Sabotaged . | . . . . Overloaded Fab Kills . | . . . . Hacking | -11 -10 -10 -8 --------- Run | Yrd Mat Sub Scr Machines Accessed 14 | . 8 . 6 Terminals 7 | . 7 . . Fabricators . | . . . . Repair Stations . | . . . . Recycling Units 1 | . 1 . . Scanalyzers . | . . . . Garrison Access . | . . . . Total Hacks 68 | . 31 . 37 Successful 55 | . 18 . 37 Failed 13 | . 13 . . Catastrophic . | . . . . Database Lockouts . | . . . . Manual 32 | . 31 . 1 Terminals 29 | . 29 . . Fabricators . | . . . . Repair Stations . | . . . . Recycling Units 2 | . 2 . . Scanalyzers . | . . . . Garrison Access . | . . . . Terminal Hacks 38 | . 1 . 37 Record 29 | . . . 29 Robot Analysis 7 | . . . 7 Emergency Access Points 1 | . 1 . . Proto ID Catalog 1 | . . . 1 Fabricator Hacks . | . . . . Repair Station Hacks . | . . . . Recycling Unit Hacks . | . . . . Scanalyzer . | . . . . Garrison Access Hacks . | . . . . Unauthorized Hacks 17 | . 17 . . Terminals 16 | . 16 . . Track 1 | . 1 . . Assimilate 2 | . 2 . . Botnet 6 | . 6 . . Disrupt 2 | . 2 . . Operators 1 | . 1 . . Skim 4 | . 4 . . Fabricators . | . . . . Repair Stations . | . . . . Recycling Units 1 | . 1 . . Monitor 1 | . 1 . . Scanalyzers . | . . . . Garrison Access . | . . . . Data Cores Recovered . | . . . . Used . | . . . . Hacking Detections 8 | . 8 . . Full Trace Events 4 | . 4 . . Feedback Events . | . . . . Feedback Blocked . | . . . . Robot Schematics Acquired . | . . . . Robots Built . | . . . . Authchips . | . . . . Time . | . . . . Total Robot Build Rating . | . . . . Part Schematics Acquired . | . . . . Parts Built . | . . . . Authchips . | . . . . Time . | . . . . Total Part Build Rating . | . . . . Parts Repaired . | . . . . Time . | . . . . Parts Recycled . | . . . . Recycled Matter . | . . . . Retrieved Matter . | . . . . Retrieved Components . | . . . . Parts Scanalyzed . | . . . . Part Schematics Acquired . | . . . . Parts Damaged . | . . . . Bothacking | -11 -10 -10 -8 ------------ Run | Yrd Mat Sub Scr Used RIF Installer . | . . . . Robots Hacked . | . . . . Non-combat . | . . . . Combat . | . . . . Robot Hacks Applied . | . . . . Relay Couplers Released . | . . . . Fabnet Peak Effective % . | . . . . Robots Rewired . | . . . . Allies Hacked . | . . . . Hacks Repelled . | . . . . Allies | -11 -10 -10 -8 -------- Run | Yrd Mat Sub Scr Total Allies . | . . . . Largest Group . | . . . . Highest-Rated Group . | . . . . Highest-Rated Ally . | . . . . Total Orders . | . . . . Ally Attacks . | . . . . Total Damage . | . . . . Kills . | . . . . Allies Corrupted . | . . . . Allies Melted . | . . . . Intel | -11 -10 -10 -8 ------- Run | Yrd Mat Sub Scr Active Infowar (turns) . | . . . . Robot Analysis Total 7 | . . . 7 Derelict Logs Recovered 2 | . . 1 1 Drone Launches 2 | . . . 2 Drone Recoveries . | . . . . Exploration | -11 -10 -10 -8 ------------- Run | Yrd Mat Sub Scr Turns Passed 4422 | 114 689 741 2878 Spaces Moved 2289 | 63 460 472 1294 Core 101 | 35 . 32 34 Treads 286 | 28 258 . . Legs 604 | . . . 604 Wheels 265 | . . 265 . Hover 1027 | . 202 175 650 Flight 6 | . . . 6 Fastest Speed 50 | 50 116 110 56 Average Speed 179 | 98 140 145 210 Slowest Speed 515 | 160 160 350 515 Overloaded Moves . | . . . . Propulsion Burnouts . | . . . . Robots Hopped . | . . . . Potential Cave-ins . | . . . . Cave-ins Triggered . | . . . . Exploration Rate (%) 52 | 4 85 36 85 Regions Visited 3 Branch Regions 2 Pre-discovered Areas 1 | . . . 1 Known Exits Taken . | . . . . Unknown Exits Taken 3 | 1 1 1 . Scrap Searched 4 | . . . 4 Spaces Dug . | . . . . Terrain Destroyed 111 | . 33 74 4 Melee . | . . . . Projectile 1 | . . . 1 AOE 110 | . 33 74 3 Terrain Rammed . | . . . . Walls Destroyed . | . . . . Machines Disabled . | . . . . Actions | -11 -10 -10 -8 --------- Run | Yrd Mat Sub Scr Total 2562 | 115 496 509 1442 Wait 86 | 39 . . 47 Move 2286 | 62 459 471 1294 Hop . | . . . . Pick Up 50 | 9 14 7 20 Fast Attach 7 | . . . 7 Attach 18 | 5 2 4 7 Detach 2 | . . . 2 Swap 21 | . 5 1 15 Drop 43 | . 9 4 30 Fire 42 | . 7 22 13 Melee . | . . . . Ram . | . . . . Kick . | . . . . Crush . | . . . . Escape Stasis . | . . . . Rewire 7 | . . . 7 Trap . | . . . . Miscellaneous . | . . . . Route ------- -11/Scrapyard -10/Materials (discovered 4 exits: [*Mat x2] / [*Min] / [*Sub]) -10/Subcaves -8/Scraptown (discovered 1 exit: [*Fac]) History --------- Turn | Location | Event 20 | -11/Scrapyard | Discovered new exit (range 15) 115 | -11/Scrapyard | Entered Materials 308 | -10/Materials | Build established: Mutant 411 | -10/Materials | Discovered new exit (range 9) 584 | -10/Materials | Discovered new exit (range 7) 763 | -10/Materials | Discovered new exit (range 10) 798 | -10/Materials | Discovered new exit (range 7) 804 | -10/Materials | Entered Subcaves 805 | -10/Subcaves | Approached by a straggling Scientist 873 | -10/Subcaves | Ambushed by swarm of Subdwellers 877 | -10/Subcaves | Ambushed by Subdwellers from Twisted Machinery 879 | -10/Subcaves | Ambushed by Subdwellers from Twisted Machinery 963 | -10/Subcaves | Ambushed by Subdwellers from Twisted Machinery 1115 | -10/Subcaves | Ambushed by Subdweller buried in earth 1319 | -10/Subcaves | Shifting Twisted Machinery released Sub. Shrapnel Launcher 1327 | -10/Subcaves | Shifting Twisted Machinery released Sub. Power Source 1524 | -10/Subcaves | Learned 8 Materials zone layouts 1542 | -10/Subcaves | Scientist uncovered a shortcut to Scraptown 1545 | -10/Subcaves | Entered Scraptown 1699 | -8/Scraptown | Heard Great Nut preacher, LISTEN AND RECITE! 2224 | -8/Scraptown | Scanned Subdweller tech in exchange for log data 2232 | -8/Scraptown | Learned location of Extension (-5) 2289 | -8/Scraptown | Discovered new exit (range 11) 2525 | -8/Scraptown | Visited Awakened 2608 | -8/Scraptown | Visited CR-KLE's Repair Center 2626 | -8/Scraptown | CR-KLE repaired 6 parts 2676 | -8/Scraptown | Visited UFD Registry 2676 | -8/Scraptown | Registered with UFD as "Kinetikit" 2733 | -8/Scraptown | Visited Assassins FH 2827 | -8/Scraptown | Visited Cyclists 2866 | -8/Scraptown | Entered Cyclist Reading Room 3359 | -8/Scraptown | Visited Supply Room 3462 | -8/Scraptown | Visited Curators Association 3516 | -8/Scraptown | Visited A0-MCA Data Center 3530 | -8/Scraptown | Given a B rating by A0-MCA 3532 | -8/Scraptown | Found A0-MCA's Component Scanner 3599 | -8/Scraptown | Visited Scrap Suit Storage 3653 | -8/Scraptown | Visited Junk Repository 3708 | -8/Scraptown | Visited Analyses Database 3760 | -8/Scraptown | Visited Science Guys 3870 | -8/Scraptown | Found Scrap Suit 4174 | -8/Scraptown | Visited Supply Room 4329 | -8/Scraptown | Visited Science Testing Area 4359 | -8/Scraptown | Attacked by Scraptown defenders 4397 | -8/Scraptown | Core integrity fell below 50% 4423 | -8/Scraptown | Destroyed by Triborg with Siege Cannon Last Messages --------------- Acquired 13 matter. The unstable cave ceiling collapses. Penetrated by Siege Slug. Hover Unit destroyed. Siege Slug penetrates Machine. Siege Slug penetrates Reinforced Barrier. Machine disabled. Siege Slug penetrates Reinforced Barrier. Siege Slug penetrates Machine. Rocket Launcher destroyed. Knocked back. Penetrated by Siege Slug. Hover Unit destroyed. Siege Slug penetrates Machine. Machine disabled. UFD Mainframe disabled. Penetrated by Siege Slug. Siege Slug penetrates Wall. Siege Slug penetrates Machine. Penetrated by Siege Slug. Map ----- +----------------------------------------------------+ | #??????????????????????????????????????????? | | #??????????????????????????????????????????? | | ""#####??????????????????????????????????????????? | | "#??????????????????????????????????????????????? | | ""#??????????????????????????????????????????????? | | ""#??????????????????????????????????????????????? | | ""#??????????????????????????????????????????????? | | ""#??????????????????????????????????????????????? | | ###????????????????##???##???????????????????????? | | ???????????????????#"###"#?????#######???#######?? | | ########????????#### "&" #####"""""""""#?#"! "?? | | """""""""???????#" """ "##"""""""""#?#" "#?? | | """""""""????????#"" ""#?#"""""""""#?## X### | | """""""""????????#!" "=#?#"""""""""#?#"! " | | """ """""#??????##"" ""###""" ! """#?#"! !" | | """ """""#??????#" "##""" """#?#"! !" | | """ """""#??????##"" ""###""" "!"#?#"! |!" | | "" """""#???????#!" "!#?#"""" """#?#"! ! " | | #??????##"" ""###""" """#?## # | | #??????#" "##" #?# | | #??????####### ###;####### ####?###### ## | | ###### ####???????##### ###;####### ########### ## | | #???????#"""" "" """"""" """"""""""" "" | | #???????#" % | | #???????#" | | #???????#" @ | | #???????#" x % | | # #???#####" % | | # #???#"""" """"""""""""""""""""""" | | # #???#"""" """""""""""""""""""""""" | | # #???#"""" ""###### ############### | | # #???#"""" ""#??? ?????????????? | | # #???#""" ""#? ? ????????????? | | # ###?#"""" ""#? "" ""????????????? | | # ""#"#"""" ""# "" ????????????## | | # """"#"""" ""# " ????######### | | # ""#######" "" ""?? | | # ###?????# "" ""?? | | # ########" " " ?????######## | | # ""# "" "???????????## | | # % ""# "" "" ???????????? | | # ""# ????????????? | | # "" ?????????????? | | # % " ##### ############### | | """"""""""""""""""""" | | """"""""""""""""""""" | | | | | | | | #""""#" | +----------------------------------------------------+ Best States ------------- Heat Dissipation 25 Energy Generation 14 Energy Capacity 250 Matter Stores 300 Matter Capacity 300 Sight Range 16 Terrain Scan Density 10 Armor Coverage 150 Resistance: KI 20 Resistance: TH 20 Resistance: EX 20 Resistance: EM 20 Resistance: I 20 Resistance: S 20 Resistance: P 20 Weapon Shielding 33 Phase Shifting 5 Evasion (%) 50 Targeting Accuracy 5 Recoil Reduction 2 Offensive Hacking 10 Item Schematics ----------------- None Robot Schematics ------------------ None Fabricated ------------ Nothing Repaired ---------- Nothing Alien Tech Used ----------------- None Achievements -------------- Armchair Analyst Librarian Challenges ------------ None Game ------ Seed MicrodissipatorGravitySpiker Manual? 0 Play Time 01:03:13 Cumulative 6.4 hours Start 2025.06.20 @ 12:43:38 End 2025.06.20 @ 13:56:42 Sessions 1 Manual Loads 0 Difficulty Adventurer Special Mode None Game No. 5 Rogue 0 Adventurer 5 Explorer 0 Win Type - Total 0 Types 0/0/0/0/0/0/0/0/0/0 Lore% 7 Gallery% 11 Achievement% 14 Wizard Run 0 Options --------- Layout 0 ASCII 0 Keyboard 0 Movement Mouse Keybinds 0 Fullscreen 1 Font 18/SmallcapsGlow Map View 38x25 Zoom Use 84% Tactical HUD 0 Map Filters NONE Filters NONE Steam 1 RUN: 3b609ccd-5028-4f7c-926d-67bf3e16c3b7